bitfinex-derivatives/quotes_BTCF0:USTF0_20250315
["timestamp","ask_amount","ask_price","bid_price","bid_amount"]
[1742080923901,0.57673026,84360.0,84359.0,0.00381178]
[1742080924302,0.58043585,84360.0,84359.0,0.00381178]
[1742080924499,0.58043585,84360.0,84359.0,0.02191135]
[1742080924905,0.57673026,84360.0,84359.0,0.02191135]
[1742080925109,0.57673026,84360.0,84359.0,0.02291135]
[1742080925418,0.57673026,84360.0,84359.0,0.02391135]
[1742080925598,0.56549652,84360.0,84359.0,0.02391135]
[1742080926600,0.30549652,84360.0,84359.0,0.02391135]
[1742080926812,0.30549652,84360.0,84359.0,0.05611135]
[1742080927211,0.16017652,84360.0,84359.0,0.40464995]
[1742080927409,0.16017652,84360.0,84359.0,0.17464995]
[1742080927608,0.1485372,84360.0,84359.0,0.17464995]
[1742080935315,0.1485372,84360.0,84359.0,0.18464995]
[1742080940812,0.1485372,84360.0,84359.0,0.06611135]
[1742080944013,0.1485372,84360.0,84359.0,0.18464995]
[1742080948424,0.1485372,84360.0,84359.0,0.06611135]
[1742080949723,0.1485372,84360.0,84359.0,0.18464995]
[1742080957417,0.1485372,84360.0,84359.0,0.06611135]
[1742080957619,0.1485372,84360.0,84359.0,0.03391135]
[1742080958530,0.1485372,84360.0,84359.0,0.15244995]
[1742080958720,0.1485372,84360.0,84359.0,0.03391135]
[1742080959225,0.1485372,84360.0,84359.0,0.02391135]
[1742080961729,0.1485372,84360.0,84359.0,0.14244995]
[1742080977434,0.1485372,84360.0,84359.0,0.37244995]
[1742080988748,0.1485372,84360.0,84359.0,0.25391135]
[1742080989050,0.1485372,84360.0,84359.0,0.37244995]
[1742080989439,0.1485372,84360.0,84359.0,0.40474995]
[1742080993667,0.1485372,84360.0,84359.0,0.28621135]
[1742080993950,0.1485372,84360.0,84359.0,0.25391135]
[1742080997053,0.1485372,84360.0,84359.0,0.37244995]
[1742080997543,0.1485372,84360.0,84359.0,0.25391135]
[1742080997949,0.1485372,84360.0,84359.0,0.37244995]
[1742080998662,0.1485372,84360.0,84359.0,0.25391135]
[1742080999263,0.16015266,84360.0,84359.0,0.25391135]
[1742081000169,0.16015266,84360.0,84359.0,0.37244995]
[1742081000656,0.16015266,84360.0,84359.0,0.40414995]
[1742081002366,0.16016158,84360.0,84359.0,0.40414995]
[1742081002956,0.16016158,84360.0,84359.0,0.28561135]
[1742081004567,0.19076158,84360.0,84359.0,0.28561135]
[1742081006170,0.19076158,84360.0,84359.0,0.25391135]
[1742081007770,0.19076158,84360.0,84359.0,0.40344995]
[1742081008261,0.19077233,84360.0,84359.0,0.40344995]
[1742081009460,0.1791372,84360.0,84359.0,0.40344995]
[1742081045201,0.1791372,84360.0,84359.0,0.40344995]
[1742081049103,0.1791372,84360.0,84359.0,0.17344995]
[1742081067816,0.1791372,84360.0,84359.0,0.05491135]
[1742081068211,0.1791372,84360.0,84359.0,0.02391135]
[1742081069212,0.1791372,84360.0,84359.0,0.05431135]
[1742081081218,0.1791372,84360.0,84359.0,0.17284995]
[1742081081731,0.1791372,84360.0,84359.0,0.05431135]
[1742081087821,0.1791372,84360.0,84359.0,0.17284995]
[1742081089033,0.1791372,84360.0,84359.0,0.05431135]
[1742081092233,0.1791372,84360.0,84359.0,0.17284995]
[1742081093840,0.1791372,84360.0,84359.0,0.05431135]
[1742081094944,0.1791372,84360.0,84359.0,0.17284995]
[1742081098748,0.1791372,84360.0,84359.0,0.05431135]
[1742081098937,0.1791372,84360.0,84359.0,0.17284995]
[1742081100536,0.1791372,84360.0,84359.0,0.05431135]
[1742081100933,0.1791372,84360.0,84359.0,0.17284995]
[1742081104546,0.1791372,84360.0,84359.0,0.05431135]
[1742081107952,0.4591372,84360.0,84359.0,0.02391135]
[1742081108149,0.4591372,84360.0,84359.0,0.00581178]
[1742081108343,0.1185484,84352.0,84349.0,0.02056549]
[1742081108642,0.1185498,84351.0,84349.0,0.00191252]
[1742081108841,0.6461498,84351.0,84349.0,0.00191252]
[1742081109044,0.4493498,84351.0,84349.0,0.00191252]
[1742081109245,0.4493498,84351.0,84349.0,0.02038466]
[1742081109641,0.4493498,84351.0,84349.0,0.02042466]
[1742081110040,0.4493498,84351.0,84350.0,0.00590732]
[1742081111054,0.4493498,84351.0,84342.0,0.00196218]
[1742081111055,0.1185611,84343.0,84342.0,0.00196218]
[1742081111234,0.5020411,84343.0,84342.0,0.00196218]
[1742081111950,0.5020411,84343.0,84342.0,0.12052468]
[1742081112151,0.5976411,84343.0,84342.0,0.12052468]
[1742081112451,0.5976411,84343.0,84342.0,0.12252468]
[1742081112948,0.5986411,84343.0,84342.0,0.14190932]
[1742081113551,0.5996411,84343.0,84342.0,0.13890932]
[1742081117334,0.5996411,84343.0,84342.0,0.02034682]
[1742081130953,0.1185625,84342.0,84341.0,0.00387078]
[1742081131162,0.4296625,84342.0,84341.0,0.00387078]
[1742081132251,0.4306625,84342.0,84341.0,0.00387078]
[1742081132451,0.4316625,84342.0,84341.0,0.00387078]
[1742081133264,0.4316625,84342.0,84341.0,0.03597078]
[1742081133967,0.4316625,84342.0,84341.0,0.05427237]
[1742081137565,0.5451425,84342.0,84341.0,0.02217237]
[1742081137766,0.1185639,84341.0,84340.0,0.00195883]
[1742081137957,0.1185653,84340.0,84339.0,0.00191048]
[1742081138157,0.3896653,84340.0,84339.0,0.00191048]
[1742081139759,0.3906653,84340.0,84339.0,0.00191048]
[1742081140075,0.4226653,84340.0,84339.0,0.00191048]
[1742081140372,0.4236653,84340.0,84339.0,0.00191048]
[1742081141373,0.4236653,84340.0,84339.0,0.02005525]
[1742081142472,0.4236653,84340.0,84339.0,0.05055525]
[1742081143474,0.7844653,84340.0,84339.0,0.05055525]
[1742081146973,1.03288713,84340.0,84339.0,0.05055525]
[1742081149876,1.03288713,84340.0,84339.0,0.02005525]
[1742081150066,0.1185695,84337.0,84336.0,0.03641067]
[1742081150267,0.3885695,84337.0,84336.0,0.03641067]
[1742081150864,0.4836695,84337.0,84336.0,0.03641067]
[1742081151566,0.4846695,84337.0,84336.0,0.03637067]
[1742081151878,0.4856695,84337.0,84336.0,0.03637067]
[1742081153177,0.8464695,84337.0,84336.0,0.03637067]
[1742081154077,0.8464695,84337.0,84336.0,0.05346615]
[1742081155695,0.8464695,84337.0,84336.0,0.00387067]
[1742081155870,0.8464695,84337.0,84336.0,0.03677067]
[1742081159078,0.6824695,84337.0,84336.0,0.03677067]
[1742081159280,0.8464695,84337.0,84336.0,0.03677067]
[1742081159480,0.8464695,84337.0,84336.0,0.00387067]
[1742081159784,0.8464695,84337.0,84336.0,0.03387067]
[1742081164486,0.9599495,84337.0,84336.0,0.03387067]
[1742081166679,1.09201751,84337.0,84336.0,0.03387067]
[1742081172088,1.09193141,84337.0,84336.0,0.03387067]
[1742081173696,1.06173141,84337.0,84336.0,0.03387067]
[1742081173898,1.06173141,84337.0,84336.0,0.03577067]
[1742081174895,0.94825141,84337.0,84336.0,0.03577067]
[1742081175200,1.06173141,84337.0,84336.0,0.03577067]
[1742081175502,1.06173141,84337.0,84336.0,0.15434157]
[1742081175997,1.06173141,84337.0,84336.0,0.03577067]
[1742081177391,1.06173141,84337.0,84336.0,0.03387067]
[1742081194405,1.06173141,84337.0,84336.0,0.03577067]
[1742081194600,1.06173141,84337.0,84336.0,0.03387067]
[1742081200214,0.70093141,84337.0,84336.0,0.03387067]
[1742081200415,1.06173141,84337.0,84336.0,0.03387067]
[1742081200822,0.70093141,84337.0,84336.0,0.03387067]
[1742081201021,1.06173141,84337.0,84336.0,0.03387067]
[1742081212116,0.70093141,84337.0,84336.0,0.03387067]
[1742081212320,1.06173141,84337.0,84336.0,0.03387067]
[1742081213419,0.70093141,84337.0,84336.0,0.03387067]
[1742081213621,1.06173141,84337.0,84336.0,0.03387067]
[1742081215227,0.70093141,84337.0,84336.0,0.03387067]
[1742081215424,1.06173141,84337.0,84336.0,0.03387067]
[1742081216633,0.70093141,84337.0,84336.0,0.03387067]
[1742081216836,1.06173141,84337.0,84336.0,0.03387067]
[1742081222639,0.70093141,84337.0,84336.0,0.03387067]
[1742081222936,1.06173141,84337.0,84336.0,0.03387067]
[1742081225132,1.31051438,84337.0,84336.0,0.03387067]
[1742081227541,1.31051438,84337.0,84336.0,0.00387067]
[1742081228738,0.9296634,84337.0,84336.0,0.00387067]
[1742081229635,0.9296634,84337.0,84336.0,0.03397067]
[1742081230932,0.9296634,84337.0,84336.0,0.00387067]
[1742081234045,0.0342,84337.0,84336.0,0.40454157]
[1742081234241,0.1185695,84337.0,84336.0,0.57744157]
[1742081234739,0.12903504,84338.0,84337.0,0.1185695]
[1742081234933,0.12903504,84338.0,84337.0,0.6425695]
[1742081235138,0.21327629,84340.0,84338.0,0.0592839]
[1742081235335,0.21327629,84340.0,84339.0,0.034]
[1742081235530,0.21327629,84340.0,84339.0,0.4925667]
[1742081235935,0.33184159,84340.0,84339.0,0.4925667]
[1742081236136,0.33184159,84340.0,84339.0,0.4025667]
[1742081236335,0.33184159,84340.0,84339.0,0.1525667]
[1742081237442,0.36224159,84340.0,84339.0,0.1525667]
[1742081240448,0.36224159,84340.0,84339.0,0.5133667]
[1742081241752,0.1489653,84340.0,84339.0,0.5133667]
[1742081242252,0.1814653,84340.0,84339.0,0.5133667]
[1742081242655,0.1814653,84340.0,84339.0,0.1506667]
[1742081242855,0.2114653,84340.0,84339.0,0.1506667]
[1742081243055,0.2114653,84340.0,84339.0,0.1820667]
[1742081248659,0.2114653,84340.0,84339.0,0.1506667]
[1742081249641,0.2114653,84340.0,84339.0,0.0321]
[1742081249840,0.1185667,84339.0,84338.0,4e-05]
[1742081250047,0.1185667,84339.0,84338.0,0.1186081]
[1742081250344,0.1792667,84339.0,84338.0,0.1186081]
[1742081250553,0.1792667,84339.0,84338.0,0.1185681]
[1742081251257,0.1792667,84339.0,84338.0,0.1512681]
[1742081251659,0.1792667,84339.0,84338.0,0.1824681]
[1742081256255,0.1792667,84339.0,84338.0,0.1924681]
[1742081257953,0.1792667,84339.0,84338.0,0.1597681]
[1742081258354,0.1792667,84339.0,84338.0,0.01]
[1742081258555,0.1185681,84338.0,84337.0,4e-05]
[1742081259057,0.1819681,84338.0,84337.0,4e-05]
[1742081259467,0.2953681,84338.0,84337.0,4e-05]
[1742081259659,0.1185695,84337.0,84336.0,0.00387067]
[1742081259960,0.1185695,84337.0,84336.0,0.00391067]
[1742081260172,0.1819695,84337.0,84336.0,0.00391067]
[1742081263970,0.2953695,84337.0,84336.0,0.00391067]
[1742081264161,0.1819695,84337.0,84336.0,0.00391067]
[1742081264352,0.2953695,84337.0,84336.0,0.00391067]
[1742081266264,0.1819695,84337.0,84336.0,0.00391067]
[1742081266466,0.2953695,84337.0,84336.0,0.00391067]
[1742081273277,0.1819695,84337.0,84336.0,0.00391067]
[1742081273476,0.2953695,84337.0,84336.0,0.00391067]
[1742081273676,0.2953695,84337.0,84336.0,0.12248157]
[1742081274379,0.2953695,84337.0,84336.0,0.00391067]
[1742081277180,0.2953695,84337.0,84336.0,0.03451067]
[1742081280474,0.2953695,84337.0,84336.0,0.15308157]
[1742081281183,0.2953695,84337.0,84336.0,0.18498157]
[1742081282179,0.2953695,84337.0,84336.0,0.03451067]
[1742081282883,0.2953695,84337.0,84336.0,0.00391067]
[1742081283069,0.4119695,84337.0,84336.0,0.00391067]
[1742081283266,0.5253695,84337.0,84336.0,0.00391067]
[1742081287070,0.5253695,84337.0,84336.0,0.03621067]
[1742081288777,0.4119695,84337.0,84336.0,0.03621067]
[1742081288973,0.5253695,84337.0,84336.0,0.03621067]
[1742081290983,0.5253695,84337.0,84336.0,0.03617067]
[1742081293489,0.73869528,84337.0,84336.0,0.03617067]
[1742081300087,0.5253695,84337.0,84336.0,0.03617067]
[1742081300287,0.4119695,84337.0,84336.0,0.03617067]
[1742081300489,0.5253695,84337.0,84336.0,0.03617067]
[1742081301095,0.5253695,84337.0,84336.0,0.00387067]
[1742081301883,0.4119695,84337.0,84336.0,0.03457067]
[1742081302088,0.5253695,84337.0,84336.0,0.03457067]
[1742081304292,0.4119695,84337.0,84336.0,0.03457067]
[1742081304589,0.5253695,84337.0,84336.0,0.03457067]
[1742081305296,0.4119695,84337.0,84336.0,0.03457067]
[1742081305496,0.5253695,84337.0,84336.0,0.03457067]
[1742081306291,0.4119695,84337.0,84336.0,0.03457067]
[1742081306492,0.5253695,84337.0,84336.0,0.03457067]
[1742081306997,0.1819695,84337.0,84336.0,0.15314157]
[1742081307187,0.2953695,84337.0,84336.0,0.06757067]
[1742081307495,0.1819695,84337.0,84336.0,0.06757067]
[1742081307691,0.2953695,84337.0,84336.0,0.06757067]
[1742081307894,0.2953695,84337.0,84336.0,0.18614157]
[1742081308391,0.1819695,84337.0,84336.0,0.18614157]
[1742081308579,0.2953695,84337.0,84336.0,0.18614157]
[1742081308780,0.1819695,84337.0,84336.0,0.18614157]
[1742081308984,0.2953695,84337.0,84336.0,0.18614157]
[1742081309395,0.1819695,84337.0,84336.0,0.18614157]
[1742081309592,0.2953695,84337.0,84336.0,0.18614157]
[1742081309988,0.1510695,84337.0,84336.0,0.43614157]
[1742081310188,0.1510695,84337.0,84336.0,0.19614157]
[1742081316300,0.36433987,84337.0,84336.0,0.19614157]
[1742081321992,0.39673987,84337.0,84336.0,0.19614157]
[1742081322195,0.1834695,84337.0,84336.0,0.19614157]
[1742081329906,0.1834695,84337.0,84336.0,0.16314157]
[1742081331196,0.1834695,84337.0,84336.0,0.19444157]
[1742081334211,0.1834695,84337.0,84336.0,0.16314157]
[1742081336310,0.2140695,84337.0,84336.0,0.16314157]
[1742081339105,0.42733987,84337.0,84336.0,0.13244157]
[1742081343013,0.2140695,84337.0,84336.0,0.13244157]
[1742081343913,0.2140695,84337.0,84336.0,0.16484157]
[1742081347513,0.2140695,84337.0,84336.0,0.01387067]
[1742081348014,0.2140695,84337.0,84336.0,0.13244157]
[1742081349517,0.2140695,84337.0,84336.0,0.01387067]
[1742081349917,0.2140695,84337.0,84336.0,0.13244157]
[1742081351722,0.2140695,84337.0,84336.0,0.01387067]
[1742081352919,0.2140695,84337.0,84336.0,0.13244157]
[1742081355025,0.2140695,84337.0,84336.0,0.01387067]
[1742081355325,0.2140695,84337.0,84336.0,0.13244157]
[1742081356125,0.3274295,84337.0,84336.0,0.13244157]
[1742081359420,0.3274295,84337.0,84336.0,0.01387067]
[1742081360017,0.5674295,84337.0,84336.0,0.01387067]
[1742081360220,0.5674295,84337.0,84336.0,0.00387067]
[1742081361222,0.3274295,84337.0,84336.0,0.12244157]
[1742081361413,0.3274295,84337.0,84336.0,0.15324157]
[1742081370419,0.2140695,84337.0,84336.0,0.15324157]
[1742081371036,0.3274295,84337.0,84336.0,0.15324157]
[1742081373828,0.3274295,84337.0,84336.0,0.03467067]
[1742081377817,0.3274295,84337.0,84336.0,0.15324157]
[1742081378840,0.2140695,84337.0,84336.0,0.15324157]
[1742081379029,0.3274295,84337.0,84336.0,0.15324157]
[1742081388942,0.2140695,84337.0,84336.0,0.15324157]
[1742081389340,0.3273895,84337.0,84336.0,0.15324157]
[1742081389538,0.1816695,84337.0,84336.0,0.15324157]
[1742081390226,0.2126695,84337.0,84336.0,0.15324157]
[1742081391944,0.1816695,84337.0,84336.0,0.15324157]
[1742081404845,0.4216695,84337.0,84336.0,0.15324157]
[1742081405149,0.4616695,84337.0,84336.0,0.15324157]
[1742081407648,0.4938695,84337.0,84336.0,0.15324157]
[1742081408841,0.4938695,84337.0,84336.0,0.12244157]
[1742081411349,0.4938695,84337.0,84336.0,0.00387067]
[1742081411650,0.4938695,84337.0,84336.0,0.12244157]
[1742081413151,0.4938695,84337.0,84336.0,0.00387067]
[1742081413839,0.4938695,84337.0,84336.0,0.12244157]
[1742081415054,0.4938695,84337.0,84336.0,0.00387067]
[1742081416155,0.4938695,84337.0,84336.0,0.12244157]
[1742081416353,0.4938695,84337.0,84336.0,0.00387067]
[1742081418555,0.6071895,84337.0,84336.0,0.00387067]
[1742081418954,0.9679895,84337.0,84336.0,0.00387067]
[1742081419349,0.8546695,84337.0,84336.0,0.00387067]
[1742081419962,0.9679895,84337.0,84336.0,0.00387067]
[1742081420547,0.8546695,84337.0,84336.0,0.00387067]
[1742081421147,0.9679895,84337.0,84336.0,0.00387067]
[1742081421353,0.8546695,84337.0,84336.0,0.00387067]
[1742081421553,0.9679895,84337.0,84336.0,0.00387067]
[1742081422356,0.8546695,84337.0,84336.0,0.00387067]
[1742081422651,0.9679895,84337.0,84336.0,0.00387067]
[1742081423154,0.6071895,84337.0,84336.0,0.00387067]
[1742081423354,0.8546695,84337.0,84336.0,0.00387067]
[1742081423964,0.9679895,84337.0,84336.0,0.00387067]
[1742081424555,0.81649934,84337.0,84336.0,0.00387067]
[1742081424758,0.70317934,84337.0,84336.0,0.00387067]
[1742081424955,1.05649934,84337.0,84336.0,0.00387067]
[1742081425855,0.94317934,84337.0,84336.0,0.00387067]
[1742081426051,1.05649934,84337.0,84336.0,0.00387067]
[1742081426256,0.94317934,84337.0,84336.0,0.00387067]
[1742081426466,1.05649934,84337.0,84336.0,0.00387067]
[1742081427448,0.94317934,84337.0,84336.0,0.00387067]
[1742081427666,1.05649934,84337.0,84336.0,0.00387067]
[1742081428260,0.9279895,84337.0,84336.0,0.00387067]
[1742081428453,0.8146695,84337.0,84336.0,0.00387067]
[1742081428654,0.9279895,84337.0,84336.0,0.00387067]
[1742081429555,0.8146695,84337.0,84336.0,0.00387067]
[1742081429754,0.9279895,84337.0,84336.0,0.00387067]
[1742081430155,0.9279895,84337.0,84336.0,0.03537067]
[1742081430461,0.8146695,84337.0,84336.0,0.03537067]
[1742081430656,0.9279895,84337.0,84336.0,0.03537067]
[1742081431494,0.8146695,84337.0,84336.0,0.03537067]
[1742081431662,1.05649934,84337.0,84336.0,0.03537067]
[1742081433464,1.05649934,84337.0,84336.0,0.00387067]
[1742081433676,0.94317934,84337.0,84336.0,0.00387067]
[1742081433866,1.05649934,84337.0,84336.0,0.00387067]
[1742081435174,1.05649934,84337.0,84336.0,0.03707067]
[1742081435559,0.94317934,84337.0,84336.0,0.03707067]
[1742081435758,1.05649934,84337.0,84336.0,0.03707067]
[1742081437180,1.05649934,84337.0,84336.0,0.00387067]
[1742081438775,0.69569934,84337.0,84336.0,0.00387067]
[1742081439079,1.05649934,84337.0,84336.0,0.00387067]
[1742081441379,0.70317934,84337.0,84336.0,0.12244157]
[1742081441676,0.70317934,84337.0,84336.0,0.18394157]
[1742081441872,0.81649934,84337.0,84336.0,0.18394157]
[1742081443860,0.67097934,84337.0,84336.0,0.18394157]
[1742081444071,0.6251895,84337.0,84336.0,0.43394157]
[1742081446276,0.5118695,84337.0,84336.0,0.43394157]
[1742081451183,0.1510695,84337.0,84336.0,0.43394157]
[1742081452679,0.0325,84337.0,84336.0,0.43394157]
[1742081452981,0.42662567,84343.0,84342.0,0.1185625]
[1742081453278,0.42662567,84343.0,84342.0,0.3685625]
[1742081453972,0.42662567,84343.0,84342.0,0.4317625]
[1742081454173,0.1798427,84343.0,84342.0,0.4317625]
[1742081456086,0.0943806,84343.0,84342.0,0.4317625]
[1742081467394,0.0943806,84343.0,84342.0,0.3132]
[1742081467790,0.0943806,84343.0,84342.0,0.2829]
[1742081468087,0.0943806,84343.0,84342.0,0.25]
[1742081468286,0.4551806,84343.0,84342.0,0.25]
[1742081468489,0.6851806,84343.0,84342.0,0.25]
[1742081469892,0.1185625,84342.0,84341.0,4e-05]
[1742081470092,0.4095625,84342.0,84341.0,4e-05]
[1742081470281,0.4405625,84342.0,84341.0,4e-05]
[1742081471194,0.1185667,84339.0,84338.0,0.1498672]
[1742081471384,0.1185667,84339.0,84338.0,0.1598672]
[1742081471788,0.1185667,84339.0,84338.0,0.1285672]
[1742081471989,0.1843667,84339.0,84338.0,0.1285672]
[1742081472688,0.1853667,84339.0,84338.0,0.1285672]
[1742081474192,0.1863667,84339.0,84338.0,0.1285672]
[1742081476289,0.1863667,84339.0,84338.0,0.1916672]
[1742081478193,0.0678,84339.0,84338.0,0.1916672]
[1742081478387,0.1863667,84339.0,84338.0,0.2316672]
[1742081478901,0.0678,84339.0,84338.0,0.2316672]
[1742081479892,0.1863667,84339.0,84338.0,0.2316672]
[1742081480101,0.1863667,84339.0,84338.0,0.1916672]
[1742081493904,0.4463667,84339.0,84338.0,0.1916672]
[1742081494107,0.1863667,84339.0,84338.0,0.1916672]
[1742081513825,0.1863667,84339.0,84338.0,0.01]
[1742081514629,0.1863667,84339.0,84338.0,0.04]
[1742081515032,0.1863667,84339.0,84338.0,0.1585681]
[1742081515436,0.1863667,84339.0,84338.0,0.1891681]
[1742081516336,0.1863667,84339.0,84338.0,0.0706]
[1742081517648,0.1863667,84339.0,84338.0,0.1891681]
[1742081521352,0.1863667,84339.0,84338.0,0.1585681]
[1742081521739,0.1863667,84339.0,84338.0,0.04]
[1742081521934,0.1863667,84339.0,84338.0,0.1585681]
[1742081525552,0.1863667,84339.0,84338.0,0.1285681]
[1742081527151,0.1863667,84339.0,84338.0,0.01]
[1742081527553,0.1863667,84339.0,84338.0,0.1285681]
[1742081527858,0.1863667,84339.0,84338.0,0.01]
[1742081528048,0.1863667,84339.0,84337.0,4e-05]
[1742081528049,0.1185681,84338.0,84337.0,4e-05]
[1742081528256,0.1838681,84338.0,84337.0,4e-05]
[1742081528765,0.1185695,84337.0,84336.0,0.12248157]
[1742081528949,0.1818695,84337.0,84336.0,0.12248157]
[1742081529466,0.1818695,84337.0,84336.0,0.15258157]
[1742081531047,0.1838695,84337.0,84336.0,0.15258157]
[1742081532448,0.1838695,84337.0,84336.0,0.03401067]
[1742081532650,0.1838695,84337.0,84336.0,0.15258157]
[1742081533957,0.1838695,84337.0,84336.0,0.18438157]
[1742081534553,0.1838695,84337.0,84336.0,0.18434157]
[1742081535361,0.1838695,84337.0,84336.0,0.06577067]
[1742081535544,0.1838695,84337.0,84336.0,0.18434157]
[1742081536561,0.1838695,84337.0,84336.0,0.06577067]
[1742081536767,0.1838695,84337.0,84336.0,0.00387067]
[1742081536964,0.1838695,84337.0,84336.0,0.12244157]
[1742081537147,0.4238695,84337.0,84336.0,0.00387067]
[1742081537760,0.5371095,84337.0,84336.0,0.00387067]
[1742081538154,0.5371095,84337.0,84336.0,0.12244157]
[1742081538350,0.4238695,84337.0,84336.0,0.12244157]
[1742081538550,0.5371095,84337.0,84336.0,0.12244157]
[1742081538751,0.5371095,84337.0,84336.0,0.00387067]
[1742081540050,0.8979095,84337.0,84336.0,0.00387067]
[1742081541161,0.8979095,84337.0,84336.0,0.12244157]
[1742081541755,0.7846695,84337.0,84336.0,0.12244157]
[1742081542065,0.8979095,84337.0,84336.0,0.12244157]
[1742081542452,0.8979095,84337.0,84336.0,0.00387067]
[1742081542653,1.0235754,84337.0,84336.0,0.00387067]
[1742081542861,0.9103354,84337.0,84336.0,0.00387067]
[1742081543060,1.0235754,84337.0,84336.0,0.00387067]
[1742081543770,0.9103354,84337.0,84336.0,0.00387067]
[1742081543967,1.0235754,84337.0,84336.0,0.00387067]
[1742081544163,0.9103354,84337.0,84336.0,0.00387067]
[1742081544354,0.9503354,84337.0,84336.0,0.00387067]
[1742081544558,1.0635754,84337.0,84336.0,0.00387067]
[1742081544953,0.7835754,84337.0,84336.0,0.12244157]
[1742081545161,0.6703354,84337.0,84336.0,0.18824157]
[1742081545562,0.7835754,84337.0,84336.0,0.18824157]
[1742081546667,0.6703354,84337.0,84336.0,0.18824157]
[1742081546868,0.7835754,84337.0,84336.0,0.18824157]
[1742081548377,0.6703354,84337.0,84336.0,0.18824157]
[1742081548672,0.7835754,84337.0,84336.0,0.18824157]
[1742081551177,0.6579095,84337.0,84336.0,0.18824157]
[1742081551376,0.9279095,84337.0,84336.0,0.00387067]
[1742081551771,0.8146695,84337.0,84336.0,0.00387067]
[1742081552281,0.9279095,84337.0,84336.0,0.00387067]
[1742081556386,0.8146695,84337.0,84336.0,0.00387067]
[1742081556685,0.9279495,84337.0,84336.0,0.00387067]
[1742081557374,1.06075365,84337.0,84336.0,0.00387067]
[1742081559881,0.1185723,84335.0,84334.0,0.00189568]
[1742081560081,0.3685723,84335.0,84334.0,0.00189568]
[1742081561085,0.3695723,84335.0,84334.0,0.00189568]
[1742081561386,0.3705723,84335.0,84334.0,0.00189568]
[1742081562369,0.4838523,84335.0,84334.0,0.00189568]
[1742081563781,0.3705723,84335.0,84334.0,0.03419568]
[1742081564886,0.4838523,84335.0,84334.0,0.03419568]
[1742081565087,0.5501523,84335.0,84334.0,0.03419568]
[1742081565777,0.5501523,84335.0,84334.0,0.00189568]
[1742081566181,0.43158,84335.0,84331.0,0.00191064]
[1742081566388,0.1185793,84330.0,84329.0,0.01346143]
[1742081566568,0.3785793,84330.0,84329.0,1e-07]
[1742081566773,0.4918593,84330.0,84329.0,1e-07]
[1742081567178,0.5549593,84330.0,84329.0,1e-07]
[1742081568575,0.7528593,84330.0,84329.0,1e-07]
[1742081569673,0.7568593,84330.0,84329.0,1e-07]
[1742081569873,0.7568593,84330.0,84329.0,0.01325882]
[1742081572580,0.6435793,84330.0,84329.0,0.01325882]
[1742081573087,0.7568593,84330.0,84329.0,0.01325882]
[1742081573480,0.5599593,84330.0,84329.0,0.01325882]
[1742081573980,0.5599593,84330.0,84329.0,0.07705882]
[1742081578794,0.4466793,84330.0,84329.0,0.07705882]
[1742081578993,0.5599593,84330.0,84329.0,0.07705882]
[1742081591298,0.4466793,84330.0,84329.0,0.07705882]
[1742081591506,0.5599593,84330.0,84329.0,0.07705882]
[1742081592095,0.9207593,84330.0,84329.0,0.07705882]
[1742081594402,0.9207593,84330.0,84329.0,0.01325882]
[1742081595206,0.9207593,84330.0,84329.0,0.04435882]
[1742081595805,1.05356345,84330.0,84329.0,0.04435882]
[1742081596605,1.05356345,84330.0,84329.0,0.01325882]
[1742081597412,0.1185807,84329.0,84328.0,0.00382684]
[1742081597706,0.3585807,84329.0,84328.0,0.00382684]
[1742081597913,0.4227807,84329.0,84328.0,0.00382684]
[1742081598311,0.4227807,84329.0,84328.0,0.01673555]
[1742081598612,0.4227807,84329.0,84328.0,0.00382684]
[1742081598805,0.6196807,84329.0,84328.0,0.00382684]
[1742081599017,0.4257807,84329.0,84328.0,0.00382684]
[1742081600202,0.4287807,84329.0,84328.0,0.00382684]
[1742081602507,0.56158485,84329.0,84328.0,0.00382684]
[1742081602901,1.28318485,84329.0,84328.0,0.00382684]
[1742081603302,0.56158485,84329.0,84328.0,0.00382684]
[1742081603497,1.28318485,84329.0,84328.0,0.00382684]
[1742081604416,1.27318485,84329.0,84328.0,0.00382684]
[1742081605021,1.27318485,84329.0,84328.0,0.01696527]
[1742081608019,1.20898485,84329.0,84328.0,0.01696527]
[1742081608207,0.0592846,84339.0,84338.0,0.1185653]
[1742081608401,0.13609736,84341.0,84340.0,0.1185653]
[1742081608707,0.06014014,84341.0,84340.0,0.1185653]
[1742081609108,0.06014014,84341.0,84340.0,0.1809653]
[1742081609309,0.06014014,84342.0,84341.0,0.1185639]
[1742081609508,0.06014014,84342.0,84341.0,0.1285639]
[1742081609710,0.06014014,84342.0,84341.0,0.1909639]
[1742081613217,0.00017782,84343.0,84342.0,0.1185625]
[1742081613409,0.00017782,84343.0,84342.0,0.1796625]
[1742081616316,0.00017782,84343.0,84342.0,0.4096625]
[1742081634434,0.118585,84326.0,84319.0,0.00391422]
[1742081634626,0.1185906,84322.0,84319.0,0.00391422]
[1742081634828,0.3785906,84322.0,84319.0,0.00391422]
[1742081635024,0.4110906,84322.0,84319.0,0.00391422]
[1742081635530,0.4110906,84322.0,84321.0,0.01482918]
[1742081635731,0.4110906,84322.0,84321.0,0.00191805]
[1742081637340,0.4130906,84322.0,84321.0,0.00191805]
[1742081637851,0.4776906,84322.0,84321.0,0.00191805]
[1742081647145,0.3591,84322.0,84318.0,0.00189677]
[1742081647333,0.1185948,84319.0,84318.0,0.00189677]
[1742081647534,0.3985948,84319.0,84318.0,0.00189677]
[1742081648646,0.3995948,84319.0,84318.0,0.00189677]
[1742081650233,0.4005948,84319.0,84318.0,0.00189677]
[1742081653642,0.7613948,84319.0,84318.0,0.00189677]
[1742081654247,0.4813948,84319.0,84318.0,0.00189677]
[1742081654550,0.7513948,84319.0,84318.0,0.00189677]
[1742081657551,0.7513948,84319.0,84318.0,0.03519677]
[1742081658834,0.7513948,84319.0,84318.0,0.00189677]
[1742081661150,0.3905948,84319.0,84318.0,0.00189677]
[1742081661345,0.4813948,84319.0,84318.0,0.00189677]
[1742081661551,0.4813948,84319.0,84318.0,0.03449677]
[1742081661739,0.4813948,84319.0,84318.0,0.06499677]
[1742081663850,0.7213948,84319.0,84318.0,0.06499677]
[1742081664653,0.8347148,84319.0,84318.0,0.06499677]
[1742081667257,0.8347148,84319.0,84318.0,0.09689677]
[1742081669351,0.1186201,84301.0,84296.0,0.40222022]
[1742081669547,0.1186201,84301.0,84300.0,0.17]
[1742081669749,0.1186201,84301.0,84300.0,0.1]
[1742081670157,0.1186201,84301.0,84300.0,0.2186215]
[1742081670457,0.1186201,84301.0,84300.0,0.2226215]
[1742081670458,0.1508201,84301.0,84300.0,0.2226215]
[1742081670653,0.1508201,84301.0,84300.0,0.23848858]
[1742081671044,0.1508201,84301.0,84300.0,0.26918858]
[1742081671457,0.1508201,84301.0,84300.0,0.27318858]
[1742081672055,0.1508201,84301.0,84300.0,0.15456708]
[1742081672457,0.1508201,84301.0,84300.0,0.30638858]
[1742081673153,0.1508201,84301.0,84300.0,0.18776708]
[1742081673758,0.1508201,84301.0,84300.0,0.30638858]
[1742081674567,0.1508201,84301.0,84300.0,0.30238858]
[1742081674756,0.1508201,84301.0,84300.0,0.30338858]
[1742081674960,0.1508201,84301.0,84300.0,0.29938858]